[Event "WSTCC-50 2024"]
[Site "Krakow"]
[Date "2024.07.07"]
[Round "6.4"]
[White "Koop, Thilo"]
[Black "Kantorik, Marian"]
[Result "0-1"]
[ECO "C03"]
[WhiteElo "2088"]
[BlackElo "2198"]
[Annotator "RC"]
[PlyCount "74"]
[EventDate "2024.07.01"]
[EventType "team-tourn"]
[EventCountry "POL"]
[SourceTitle "playchess.com"]
[Source "ChessBase"]
[SourceQuality "1"]
[TimeControl "40/5400+30:1800+30"]

1. e4 {[%emt 0:00:04]} e6 {[%emt 0:00:12]} 2. d4 {[%emt 0:00:10]} d5 {[%emt 0:00:06]} 3. Nd2 {[%emt 0:00:09]} Be7 {[%emt 0:02:08]} 4. Ngf3 {[%emt 0:00:36]} Nf6 {[%emt 0:00:11]} 5. e5 {[%emt 0:00:15]} Nfd7 {[%emt 0:00:05]} 6. Bd3 {[%emt 0:00:10]} c5 {[%emt 0:00:08]} 7. c3 {[%emt 0:00:09]} Nc6 {[%emt 0:00:17]} 8. O-O {[%emt 0:00:19]} cxd4 {[%emt 0:00:11]} 9. cxd4 {[%emt 0:00:16]} g5 {[%emt 0:00:09]} 10. Nb1 {[%emt 0:00:38]} g4 {[%emt 0:06:23]} 11. Ne1 {[%emt 0:00:09]} h5 {[%emt 0:05:04]} 12. Be3 {[%emt 0:04:32]} Nb6 {[%emt 0:06:38]} 13. Nc3 {[%emt 0:08:32]} Bd7 {[%emt 0:03:21]} 14. Qe2 {[%emt 0:02:24]} a6 {[%emt 0:00:53]} 15. Nc2 {[%emt 0:00:38]} Na5 {[%emt 0:02:52]} 16. f4 {[%emt 0:06:39]} Nbc4 {[%emt 0:04:05]} 17. f5 {[%emt 0:04:26]} Nxb2 {[%emt 0:06:38]} 18. fxe6 {[%emt 0:25:18]} Bxe6 {[%emt 0:01:13]} 19. Bf5 {[%emt 0:06:55]} Qc7 {[%emt 0:03:58]} 20. Bxe6 {[%emt 0:05:07]} fxe6 {[%emt 0:00:06]} 21. Nb5 {[%emt 0:00:23]} axb5 {[%emt 0:11:05]} 22. Qxb5+ {[%emt 0:00:07]} Qc6 {[%emt 0:00:07]} 23. Qxb2 {[%emt 0:00:10]} Nc4 {[%emt 0:00:03]} 24. Qb1 {[%emt 0:04:08]} h4 {[%emt 0:03:39]} 25. Nb4 {[%emt 0:14:13]} Qb5 {[%emt 0:04:01]} 26. Qg6+ {[%emt 0:00:41]} Kd7 {[%emt 0:00:52]} 27. Rf7 {[%emt 0:05:18]} Rae8 {[%emt 0:07:59]} 28. Bg5 {[%emt 0:00:53]} Qxb4 {[%emt 0:00:52]} 29. Rb1 {[%emt 0:00:12]} Nb2 {[%emt 0:00:04]} 30. Bxe7 {[%emt 0:00:38]} Rxe7 {[%emt 0:05:04]} 31. Rxe7+ {[%emt 0:00:25]} Qxe7 {[%emt 0:00:08]} 32. Rxb2 {[%emt 0:00:06]} Kc7 {[%emt 0:00:11]} 33. Qxg4 {[%emt 0:00:55]} Kb8 {[%emt 0:00:39]} 34. Qe2 {[%emt 0:01:02]} h3 {[%emt 0:00:41]} 35. Qb5 {[%emt 0:00:21]} Rc8 {[%emt 0:01:08]} 36. Qf1 {[%emt 0:00:51]} hxg2 {[%emt 0:01:43]} 37. Kxg2 {[%emt 0:00:35]} Qg5+ {[%emt 0:00:15]} 0-1

[Event "WSTCC-50 2024"]
[Site "Krakow"]
[Date "2024.07.07"]
[Round "6.4"]
[White "Schutte, Andre"]
[Black "Jhunjhnuwala, Suresh"]
[Result "1-0"]
[ECO "B20"]
[WhiteElo "1817"]
[BlackElo "1888"]
[Annotator "NA RC"]
[PlyCount "61"]
[EventDate "2024.07.01"]
[EventType "team-tourn"]
[EventCountry "POL"]
[SourceTitle "playchess.com"]
[Source "ChessBase"]
[SourceQuality "1"]
[TimeControl "40/5400+30:1800+30"]

1. e4 {[%emt 0:00:05]} c5 {[%emt 0:00:06]} 2. c4 {[%emt 0:00:04]} Nc6 {[%emt 0:00:58]} 3. Nc3 {[%emt 0:01:15]} g6 {[%emt 0:01:10]} 4. g3 {[%emt 0:00:22]} Bg7 {[%emt 0:00:24]} 5. Bg2 {[%emt 0:00:12]} d6 {[%emt 0:01:12]} 6. Nge2 {[%emt 0:00:19]} Nf6 {[%emt 0:04:47]} 7. O-O {[%emt 0:00:28]} O-O {[%emt 0:03:54]} 8. d3 {[%emt 0:00:29]} Bd7 {[%emt 0:03:09]} 9. h3 {[%emt 0:01:41]} a6 {[%emt 0:04:50]} 10. Rb1 {[%emt 0:03:16]} Rb8 {[%emt 0:07:18]} 11. Qd2 {[%emt 0:09:46]} b5 {[%emt 0:06:45]} 12. b3 {[%emt 0:00:31]} b4 {[%emt 0:03:20]} 13. Nd1 {[%emt 0:00:10]} a5 {[%emt 0:00:31]} 14. f4 {[%emt 0:00:51]} a4 {[%emt 0:21:06]} 15. Ne3 {[%emt 0:02:22]} axb3 {[%emt 0:00:47]} 16. axb3 {[%emt 0:00:05]} Ne8 {[%emt 0:08:30]} 17. f5 {[%emt 0:08:24]} Nd4 {[%emt 0:01:14]} 18. Nxd4 {[%emt 0:02:15]} Bxd4 {[%emt 0:00:24]} 19. Bb2 {[%emt 0:01:06]} Bxb2 {[%emt 0:03:44]} 20. Rxb2 {[%emt 0:01:21]} Nf6 {[%emt 0:02:51]} 21. g4 {[%emt 0:08:59]} Bc6 {[%emt 0:07:14]} 22. g5 {[%emt 0:17:10]} Nd7 {[%emt 0:00:03]} 23. Ng4 {[%emt 0:00:05]} f6 {[%emt 0:03:30]} 24. fxg6 {[%emt 0:02:40]} Qe8 {[%emt 0:08:36]} 25. gxh7+ {[%emt 0:00:45]} Kxh7 {[%emt 0:00:04]} 26. gxf6 {[%emt 0:01:11]} Qg6 {[%emt 0:00:02]} 27. fxe7 {[%emt 0:01:32]} Rxf1+ {[%emt 0:00:01]} 28. Kxf1 {[%emt 0:01:34]} Re8 {[%emt 0:00:02]} 29. Qf2 {[%emt 0:04:10]} Rxe7 {[%emt 0:00:05]} 30. Qh4+ {[%emt 0:00:14]} Kg8 {[%emt 0:04:04]} 31. Qxe7 {[%emt 0:00:32]} 1-0

[Event "WSTCC-50 2024"]
[Site "Krakow"]
[Date "2024.07.07"]
[Round "6.5"]
[White "Buckley, Graeme N"]
[Black "Ehlvest, Jaan"]
[Result "1-0"]
[ECO "B81"]
[WhiteElo "2334"]
[BlackElo "2528"]
[Annotator "TA"]
[PlyCount "82"]
[EventDate "2024.07.01"]
[EventType "team-tourn"]
[EventCountry "POL"]
[SourceTitle "playchess.com"]
[Source "ChessBase"]
[SourceQuality "1"]
[TimeControl "40/5400+30:1800+30"]

{[%evp 25,82,68,74,81,128,66,63,20,10,18,14,0,0,-1,0,0,0,0,0,-25,0,18,13,16,18,-6,0,0,7,0,0,0,6,10,27,14,15,-88,-87,-86,-78,-83,-83,-89,-75,-125,-19,-509,-363,-29987,-29988,-29990,-29987,-29997,-29998,-29998,-29998,-29998,-29999]} 1. e4 {[%emt 0:00:03]} c5 {[%emt 0:00:06]} 2. Nf3 {[%emt 0:00:21]} e6 {[%emt 0:00:07]} 3. d4 {[%emt 0:00:10]} cxd4 {[%emt 0:00:06]} 4. Nxd4 {[%emt 0:00:02]} Nf6 {[%emt 0:01:02]} 5. Nc3 {[%emt 0:00:10]} d6 {[%emt 0:00:20]} 6. g4 {[%emt 0:02:22]} h6 {[%emt 0:00:09]} 7. h4 {[%emt 0:01:06]} Nc6 {[%emt 0:00:34]} 8. Rg1 {[%emt 0:01:32]} h5 {[%emt 0:00:43]} 9. gxh5 {[%emt 0:01:00]} Nxh5 {[%emt 0:00:06]} 10. Bg5 {[%emt 0:01:11]} Nf6 {[%emt 0:00:11]} 11. Qd2 {[%emt 0:00:39]} Qb6 {[%emt 0:01:43]} 12. Nb3 {[%emt 0:00:55]} Bd7 {[%emt 0:05:29]} 13. O-O-O {[%emt 0:00:54]} a6 {[%emt 0:00:11]} 14. Kb1 {[%emt 0:01:08]} O-O-O {[%emt 0:05:28]} (14... Qc7 $142) 15. Rg3 {[%emt 0:08:33]} ({White should play} 15. Be3 $16 Qc7 16. f4) 15... Kb8 $14 {[%emt 0:00:41]} 16. f4 {[%emt 0:05:42][%cal Bf2f4,Bf4f5][%mdl 32] White is slightly better.} Rc8 {[%emt 0:15:13] [#]} 17. f5 $1 {[%emt 0:14:26]} Ne5 {[%emt 0:00:54][%cal Oc8c3]} 18. Be3 {[%emt 0:07:14]} Qc7 {[%emt 0:01:08]} 19. Bg1 {[%emt 0:03:29]} b5 {[%emt 0:08:48]} (19... exf5 20. Qf2 Nc6 21. Nd5 Nxe4 22. Nxc7 $17) (19... Rxh4 {with more complications.} 20. Qf2 b5 21. a4 Rg4) 20. fxe6 {[%emt 0:07:53]} fxe6 {[%emt 0:00:37]} 21. Nd4 {[%emt 0:01:59][%cal Oa2a4]} Qb7 {[%emt 0:07:23][%cal Ob5b4] aiming for ...b4!} 22. Qe1 {[%emt 0:09:09][%cal Oc3b5]} b4 {[%emt 0:11:46]} 23. Nce2 {[%emt 0:01:00][%cal Bc3e2,Be2f4,Bf4e6][%mdl 32]} Nxe4 {[%emt 0:04:37]} 24. Rb3 {[%emt 0:02:18]} a5 {[%emt 0:01:41]} 25. Bg2 $132 {[%emt 0:04:39][%mdl 2048] White is fighting back} Nc4 {[%emt 0:03:48][%cal Oe4d2] ...Ned2+! is the strong threat.} 26. Nf4 $1 {[%emt 0:05:23][%csl LRe4,LRe6]} (26. Ng3 $2 Nc3+ 27. bxc3 Qxg2 28. cxb4 a4 $19 (28... Rxh4 29. bxa5+ Ka8 30. Ngf5 $15)) 26... d5 {[%emt 0:00:32] Hoping for ...Rh6.} 27. Ndxe6 {[%emt 0:01:23]} Bxe6 {[%emt 0:08:11]} 28. Nxe6 {[%emt 0:07:48] Rbd3 would now be deadly.} Re8 {[%emt 0:01:43]} 29. Bh2+ {[%emt 0:06:03] A strong pair of Bishops.} Bd6 {[%emt 0:02:20]} 30. Bxd6+ {[%emt 0:00:25]} Ncxd6 {[%emt 0:00:32]} 31. Bh3 {[%emt 0:02:02] [#]} (31. Bxe4 $11 {remains equal.} Rxe6 32. Qg3 dxe4 33. Rxd6 Rxd6 34. Qxd6+ Qc7 35. Qd5 Rxh4 36. a3 Rh1+ 37. Ka2 Qxc2 38. Qb5+ Kc8 39. Qf5+ Kc7 40. Qxa5+ Kc8 41. Qf5+ (41. Qxb4 $2 Qb1#) 41... Kc7 42. Qe5+ (42. Rxb4 Qb1+ 43. Kb3 Qd3+ 44. Ka2 Qb1+ 45. Kb3 Qd1+ 46. Ka2 Qa1+ 47. Kb3 Qd1+ 48. Ka2 Qb1+ $11) 42... Kc8 43. Qe6+ (43. Rxb4 Qb1+ 44. Kb3 Qd1+ 45. Ka2 Qb1+ 46. Kb3 Qd1+ 47. Ka2 Qa1+ 48. Kb3 Qd1+ $11) 43... Kc7 44. Qe7+ (44. Rxb4 Qb1+ 45. Kb3 Qd1+ 46. Ka2 Qa1+ 47. Kb3 Qd1+ 48. Ka2 Qa1+ 49. Kb3 Qd1+ $11) 44... Kc6 45. Qe6+ (45. Qxg7 $2 Qb1#) 45... Kc7 46. Rxb4 Qb1+ 47. Kb3 Qd1+ 48. Ka2 Qa1+ 49. Kb3 Qd1+ 50. Ka2 Qa1+ 51. Kb3 Qd1+) 31... Rh6 $1 $17 {[%emt 0:02:59]} 32. a3 {[%emt 0:02:24][%cal Ra3b4]} Rhxe6 {[%emt 0:00:59]} 33. Bxe6 {[%emt 0:00:03]} Rxe6 {[%emt 0:00:06]} 34. axb4 {[%emt 0:01:01]} a4 {[%emt 0:00:33]} 35. Rf3 {[%emt 0:00:48] [#]} (35. Rbd3 $142) 35... Re8 {[%emt 0:01:20]} (35... Qe7 $1 $17 {White must now prevent ...Nc4.} 36. Qe3 (36. Rxd5 Nf6 $17) 36... Nc4 (36... Qxh4 $2 {perishes.} 37. Qb6+ Kc8 38. Rf8+ Re8 39. Qc6+ Kd8 40. Rxe8+ Nxe8 41. Rxd5+ N8d6 42. Rxd6+ Nxd6 43. Qxd6+ Ke8 44. Qe6+ Qe7 45. Qc4 $18)) 36. Qf1 $2 {[%emt 0:01:38][%mdl 8192] Against Nc4. White does not recover from this.} (36. Ka1 $11 {and White stays safe.}) 36... Nc4 {[%emt 0:04:31]} 37. Qg2 $2 {[%emt 0:01:04]} (37. Rf8 $19 Ned2+ 38. Ka2 Nxf1 39. Rxe8+ Ka7 40. Rxf1) 37... Qxb4 {[%emt 0:01:12][%csl Gc4][%cal Rb4b2] Black mates.} 38. c3 {[%emt 0:00:02] [#]} Ned2+ $1 {[%emt 0:01:21][%mdl 512]} 39. Rxd2 {[%emt 0:01:00]} (39. Qxd2 Nxd2+) 39... Re1+ {[%emt 0:00:07]} 40. Kc2 {[%emt 0:00:28]} Qb3+ {[%emt 0:00:05]} 41. Kd3 {[%emt 0:30:12]} Ne5+ {[%emt 0:30:05][%mdl 32768] Weighted Error Value: White=0.45/Black=0.15 (very precise) .  Loses game:     	White=1     	---        Mistake:       	White=4     	Black=2      Inaccurate:     	White=1     	Black=1      OK:         	White=7     	Black=9      Best:        	White=2     	Black=2      Strong:       	White=1     	Black=1     . Loss on time!?} 1-0

[Event "WSTCC-50 2024"]
[Site "Krakow"]
[Date "2024.07.07"]
[Round "6.5"]
[White "Dahl, Fredrik A"]
[Black "Schuster, Karsten"]
[Result "0-1"]
[ECO "A46"]
[WhiteElo "2237"]
[BlackElo "2307"]
[Annotator "TA"]
[PlyCount "138"]
[EventDate "2024.07.01"]
[EventType "team-tourn"]
[EventCountry "POL"]
[SourceTitle "playchess.com"]
[Source "ChessBase"]
[SourceQuality "1"]
[TimeControl "40/5400+30:1800+30"]

{[%evp 33,138,-25,0,-7,7,8,18,0,3,4,0,0,1,0,0,0,0,0,0,0,-1,-12,-12,-16,-19,-15,0,-16,0,0,0,0,0,0,0,0,0,0,0,0,0,0,0,0,0,0,0,0,0,0,0,0,0,0,0,0,0,0,0,-5,-5,-5,-5,-5,-5,-5,-5,-5,-5,-5,-5,-5,-5,-5,0,0,0,0,0,0,0,0,0,0,0,-344,-328,-322,-321,-11805,-321,-321,-321,-29958,-29958,-9761,-7781,-9761,-7781,-29975,-29976,-29974,-29975,-29979,-29980,-29979,-29979]} 1. d4 {[%emt 0:00:03]} Nf6 {[%emt 0:00:05]} 2. Nf3 {[%emt 0:00:05]} d5 {[%emt 0:00:06]} 3. c4 {[%emt 0:00:06]} e6 {[%emt 0:01:12]} 4. g3 {[%emt 0:00:41]} Bb4+ {[%emt 0:00:14]} 5. Bd2 {[%emt 0:00:19]} Be7 {[%emt 0:00:07]} 6. Bg2 {[%emt 0:00:44]} O-O {[%emt 0:00:10]} 7. O-O {[%emt 0:00:59]} c6 {[%emt 0:00:11]} 8. Qc2 {[%emt 0:01:18]} Nbd7 {[%emt 0:00:45]} 9. Bf4 {[%emt 0:03:37]} b6 {[%emt 0:06:29]} 10. cxd5 {[%emt 0:03:52] 10.Nbd2 wird beliebter.} cxd5 {[%emt 0:00:39]} 11. Nc3 {[%emt 0:06:14] E08: Katalanisch.} Bb7 {[%emt 0:02:11]} 12. Rfc1 {[%emt 0:12:52]} a6 {[%emt 0:03:14]} 13. Ne5 {[%emt 0:00:23]} Rc8 $146 {[%emt 0:07:30]} ({Predecessor:} 13... Nxe5 14. Bxe5 b5 15. e3 Nd7 16. Ne2 Nxe5 17. dxe5 Rc8 18. Qb3 Qb6 19. a4 b4 {½-½ Arnold,K (2406)-Marra,E (2180) Titled Tuesday intern op 6th Aug blitz 2019 (9)}) 14. a4 {[%emt 0:03:56]} Nxe5 {[%emt 0:14:02]} 15. Bxe5 {[%emt 0:01:17]} Ne4 {[%emt 0:07:05]} 16. h4 {[%emt 0:18:17]} Nd6 {[%emt 0:07:45]} 17. b3 {[%emt 0:03:46]} Ne4 {[%emt 0:18:50]} 18. Qd3 {[%emt 0:13:30]} Nxc3 {[%emt 0:00:53]} 19. Rxc3 {[%emt 0:00:06]} Bb4 {[%emt 0:00:08]} 20. Rc2 {[%emt 0:06:46]} (20. Rxc8 {vereinfacht} Qxc8 21. Bf1 f6 22. Bf4) 20... Qd7 {[%emt 0:12:55]} 21. Rac1 {[%emt 0:03:09]} Rxc2 {[%emt 0:00:06]} 22. Rxc2 {[%emt 0:00:07]} Rc8 {[%emt 0:00:09]} 23. Bf4 {[%emt 0:05:30]} Rxc2 {[%emt 0:03:38]} 24. Qxc2 {[%emt 0:00:08]} Qc6 {[%emt 0:00:02]} 25. Qxc6 {[%emt 0:01:25]} Bxc6 {[%emt 0:00:03]} 26. e3 {[%emt 0:04:50]} b5 {[%emt 0:00:18]} 27. axb5 {[%emt 0:00:08]} Bxb5 {[%emt 0:00:12]} 28. Bf1 {[%emt 0:00:15]} Bxf1 {[%emt 0:01:04]} 29. Kxf1 {[%emt 0:00:08]} Kf8 {[%emt 0:00:07]} 30. Ke2 {[%emt 0:01:14]} Ke7 {[%emt 0:00:26]} 31. g4 {[%emt 0:04:37]} Kd7 {[%emt 0:04:11]} 32. h5 {[%emt 0:00:44]} Kc6 {[%emt 0:01:26]} 33. Kd3 {[%emt 0:00:15]} Kb5 {[%emt 0:00:26]} 34. f3 {[%emt 0:00:50]} Be7 {[%emt 0:02:25]} 35. Kc3 {[%emt 0:02:48]} Bh4 {[%emt 0:02:48]} 36. Bd6 {[%emt 0:00:39]} g6 {[%emt 0:01:12]} 37. Kd3 {[%emt 0:00:39]} Be1 {[%emt 0:01:11]} 38. Be7 {[%emt 0:00:19]} Bb4 {[%emt 0:00:38]} 39. Bh4 {[%emt 0:00:20]} gxh5 {[%emt 0:02:31]} 40. gxh5 {[%emt 0:00:08]} Bd6 41. Be1 {[%emt 0:30:15]} Kc6 {[%emt 0:30:59]} 42. Bd2 {[%emt 0:00:00]} Kd7 {[%emt 0:00:00]} 43. e4 {[%emt 0:00:00]} f6 {[%emt 0:00:00]} 44. Bh6 {[%emt 0:00:00]} Ke8 {[%emt 0:00:00]} 45. Ke3 {[%emt 0:00:00]} Bg3 {[%emt 0:00:00]} 46. exd5 {[%emt 0:00:00]} exd5 {[%emt 0:00:00]} 47. f4 {[%emt 0:00:00]} f5 {[%emt 0:00:00]} 48. Bg7 {[%emt 0:00:00]} Kd7 {[%emt 0:00:00]} 49. Be5 $1 {[%emt 0:00:00]} Kc6 {[%emt 0:00:00]} 50. Kd3 {[%emt 0:00:00]} Kb5 {[%emt 0:00:00]} 51. Bd6 {[%emt 0:00:00]} Be1 {[%emt 0:00:00]} 52. Be5 {[%emt 0:00:00]} Bb4 {[%emt 0:00:00]} 53. Kc2 {[%emt 0:00:00]} a5 {[%emt 0:00:00]} 54. Bf6 {[%emt 0:00:00]} a4 {[%emt 0:00:00]} 55. bxa4+ {[%emt 0:00:00]} Kxa4 {[%emt 0:00:00]} 56. Be5 {[%emt 0:00:00]} Be7 {[%emt 0:00:00]} 57. Kc3 {[%emt 0:00:00]} Bh4 {[%emt 0:00:00]} 58. Bd6 {[%emt 0:00:00]} Bf2 {[%emt 0:00:00]} 59. Bc5 $2 {[%emt 0:00:00][%mdl 8192]} (59. Kd3 $11) 59... Be1+ $19 {[%emt 0:00:00]} 60. Kc2 {[%emt 0:00:00]} Bb4 {[%emt 0:00:00]} 61. Kd3 $2 {[%emt 0:00:00]} (61. Bb6 Kb5 62. Kb3) 61... Kb3 $2 {[%emt 0:00:00]} (61... Kb5 62. Ba7 Bd6) 62. Bb6 {[%emt 0:00:00]} Bd6 {[%emt 0:00:00]} 63. Ke3 $2 {[%emt 0:00:00]} (63. Ba5 $19) 63... Kc4 {[%emt 0:00:00]} 64. Bd8 {[%emt 0:05:46]} Ba3 {[%emt 0:00:00]} 65. Bf6 {[%emt 0:00:08]} Bc1+ {[%emt 0:00:00]} 66. Kf3 {[%emt 0:00:11]} Kd3 {[%emt 0:00:00]} 67. Be5 {[%emt 0:00:29]} Be3 {[%emt 0:00:00]} 68. h6 {[%emt 0:00:34]} Bxd4 {[%emt 0:00:00]} 69. Kg3 {[%emt 0:00:36]} Ke4 {[%emt 0:00:00]} 0-1

[Event "WSTCC-50 2024"]
[Site "Krakow"]
[Date "2024.07.07"]
[Round "6.5"]
[White "Csonkics, Tunde"]
[Black "Zeidler, Sven P."]
[Result "1/2-1/2"]
[ECO "A04"]
[WhiteElo "1995"]
[BlackElo "2116"]
[Annotator "RC"]
[PlyCount "149"]
[EventDate "2024.07.01"]
[EventType "team-tourn"]
[EventCountry "POL"]
[SourceTitle "playchess.com"]
[Source "ChessBase"]
[SourceQuality "1"]
[TimeControl "40/5400+30:1800+30"]

1. Nf3 {[%emt 0:00:03]} f5 {[%emt 0:00:06]} 2. g3 {[%emt 0:00:04]} Nf6 {[%emt 0:00:06]} 3. Bg2 {[%emt 0:00:06]} g6 {[%emt 0:00:23]} 4. b3 {[%emt 0:00:05]} Bg7 {[%emt 0:00:31]} 5. Bb2 {[%emt 0:00:06]} O-O {[%emt 0:00:34]} 6. O-O {[%emt 0:00:06]} d6 {[%emt 0:00:26]} 7. d4 {[%emt 0:00:09]} Ne4 {[%emt 0:05:38]} 8. Nbd2 {[%emt 0:01:49]} Nc6 {[%emt 0:00:28]} 9. Ne1 {[%emt 0:00:17]} Nxd2 {[%emt 0:04:39]} 10. Qxd2 {[%emt 0:00:08]} e5 {[%emt 0:00:09]} 11. Bxc6 {[%emt 0:02:11]} bxc6 {[%emt 0:00:06]} 12. dxe5 {[%emt 0:00:04]} dxe5 {[%emt 0:00:08]} 13. Nd3 {[%emt 0:00:41]} e4 {[%emt 0:12:09]} 14. Bxg7 {[%emt 0:00:09]} Kxg7 {[%emt 0:00:05]} 15. Qc3+ {[%emt 0:00:07]} Qf6 {[%emt 0:00:17]} 16. Ne5 {[%emt 0:00:54]} Ba6 {[%emt 0:04:47]} 17. Rfe1 {[%emt 0:07:26]} Rfe8 {[%emt 0:29:09]} 18. f4 {[%emt 0:00:12]} c5 {[%emt 0:02:24]} 19. Qxc5 {[%emt 0:08:26]} Qb6 {[%emt 0:01:24]} 20. Nd7 {[%emt 0:05:35]} Qxc5+ {[%emt 0:01:42]} 21. Nxc5 {[%emt 0:00:52]} Bb5 {[%emt 0:00:08]} 22. Rad1 {[%emt 0:01:10]} Kf7 {[%emt 0:04:50]} 23. a4 {[%emt 0:01:27]} Bc6 {[%emt 0:00:20]} 24. b4 {[%emt 0:06:14]} Rad8 {[%emt 0:02:49]} 25. c4 {[%emt 0:11:37]} Rd6 {[%emt 0:03:35]} 26. b5 {[%emt 0:02:29]} Ba8 {[%emt 0:02:53]} 27. a5 {[%emt 0:04:47]} Red8 {[%emt 0:00:51]} 28. Rc1 {[%emt 0:02:07]} Rd2 {[%emt 0:02:23]} 29. Na6 {[%emt 0:00:43]} Bb7 {[%emt 0:09:54]} 30. Nxc7 {[%emt 0:05:10]} e3 {[%emt 0:00:39]} 31. Nd5 {[%emt 0:04:10]} Bxd5 {[%emt 0:01:30]} 32. cxd5 {[%emt 0:00:07]} Rd7 {[%emt 0:02:46]} 33. b6 {[%emt 0:07:06]} R2xd5 {[%emt 0:02:28]} 34. Rb1 {[%emt 0:01:53]} Rb7 {[%emt 0:01:57]} 35. Rec1 {[%emt 0:00:51]} Rxa5 {[%emt 0:02:54]} 36. Rc7+ {[%emt 0:00:07]} Rxc7 {[%emt 0:00:04]} 37. bxc7 {[%emt 0:00:04]} Rc5 {[%emt 0:00:07]} 38. Rb7 {[%emt 0:00:09]} Ke6 {[%emt 0:01:02]} 39. Rxa7 {[%emt 0:01:13]} h6 {[%emt 0:00:24]} 40. Kg2 {[%emt 0:00:26]} Rc3 {[%emt 0:00:21]} 41. Kf3 {[%emt 0:31:01]} Kf6 {[%emt 0:30:27]} 42. h3 {[%emt 0:04:49]} h5 {[%emt 0:01:42]} 43. g4 {[%emt 0:00:36]} hxg4+ {[%emt 0:00:00]} 44. hxg4 {[%emt 0:00:00]} fxg4+ {[%emt 0:00:00]} 45. Kxg4 {[%emt 0:00:00]} Rc4 {[%emt 0:00:00]} 46. Kf3 {[%emt 0:00:00]} g5 {[%emt 0:00:00]} 47. fxg5+ {[%emt 0:00:00]} Kxg5 {[%emt 0:00:00]} 48. Kxe3 {[%emt 0:00:00]} Kf6 {[%emt 0:00:00]} 49. Kd3 {[%emt 0:00:00]} Rc1 {[%emt 0:00:00]} 50. Kd4 {[%emt 0:00:00]} Ke6 {[%emt 0:00:00]} 51. Ke4 {[%emt 0:00:00]} Rc4+ {[%emt 0:00:00]} 52. Kd3 {[%emt 0:00:00]} Rc1 {[%emt 0:00:00]} 53. e3 {[%emt 0:00:00]} Kd6 {[%emt 0:00:00]} 54. Ke4 {[%emt 0:00:00]} Ke6 {[%emt 0:00:00]} 55. Kf4 {[%emt 0:02:48]} Rf1+ {[%emt 0:00:00]} 56. Kg5 {[%emt 0:00:15]} Rg1+ {[%emt 0:00:00]} 57. Kf4 {[%emt 0:00:19]} Rf1+ {[%emt 0:00:00]} 58. Ke4 {[%emt 0:01:33]} Rc1 {[%emt 0:00:00]} 59. Ra6+ {[%emt 0:00:08]} Kd7 {[%emt 0:00:00]} 60. Ke5 {[%emt 0:06:42]} Rxc7 {[%emt 0:00:00]} 61. e4 {[%emt 0:00:34]} Ke7 {[%emt 0:00:00]} 62. Kf5 {[%emt 0:00:43]} Rc1 {[%emt 0:00:20]} 63. Ra7+ {[%emt 0:00:16]} Ke8 {[%emt 0:00:55]} 64. e5 {[%emt 0:00:15]} Rc6 {[%emt 0:00:41]} 65. Ra5 {[%emt 0:06:12]} Ke7 {[%emt 0:01:03]} 66. Ra3 {[%emt 0:01:29]} Rb6 {[%emt 0:00:58]} 67. Rg3 {[%emt 0:00:38]} Ra6 {[%emt 0:00:27]} 68. Rg7+ {[%emt 0:00:55]} Kf8 {[%emt 0:00:35]} 69. Rd7 {[%emt 0:01:19]} Ke8 {[%emt 0:00:44]} 70. Rd6 {[%emt 0:01:47]} Rxd6 {[%emt 0:00:49]} 71. exd6 {[%emt 0:00:04]} Kd7 {[%emt 0:00:15]} 72. Ke5 {[%emt 0:00:02]} Kd8 {[%emt 0:00:14]} 73. Ke6 {[%emt 0:00:14]} Ke8 {[%emt 0:00:07]} 74. d7+ {[%emt 0:00:08]} Kd8 {[%emt 0:00:06]} 75. Kd6 {[%emt 0:00:02]} 1/2-1/2

[Event "WSTCC-50 2024"]
[Site "Krakow"]
[Date "2024.07.07"]
[Round "6.6"]
[White "Shabalov, Alexander"]
[Black "Dishman, Stephen"]
[Result "1/2-1/2"]
[ECO "A06"]
[WhiteElo "2467"]
[BlackElo "2308"]
[Annotator "TA"]
[PlyCount "50"]
[EventDate "2024.07.01"]
[EventType "team-tourn"]
[EventCountry "POL"]
[SourceTitle "playchess.com"]
[Source "ChessBase"]
[SourceQuality "1"]
[TimeControl "40/5400+30:1800+30"]

{[%evp 14,50,0,-17,-14,-21,-22,-14,-22,-32,0,-9,0,-22,-26,-24,-29,-19,-21,-30,-27,-37,-22,-48,0,0,4,0,0,0,0,0,0,0,0,0,0,0,21]} 1. Nf3 {[%emt 0:00:05]} d5 {[%emt 0:00:26]} 2. g3 {[%emt 0:00:05]} g6 {[%emt 0:02:05]} 3. Bg2 {[%emt 0:00:48]} Bg7 {[%emt 0:00:07]} 4. O-O {[%emt 0:00:10]} e5 {[%emt 0:00:25]} 5. c4 {[%emt 0:03:46]} dxc4 {[%emt 0:00:18]} 6. Na3 {[%emt 0:01:10]} Nc6 {[%emt 0:02:16]} 7. Nxc4 {[%emt 0:00:25]} Nge7 {[%emt 0:07:26]} 8. d3 {[%emt 0:00:37]} O-O {[%emt 0:01:55]} 9. Bd2 {[%emt 0:00:22]} Be6 {[%emt 0:05:18]} 10. Rc1 {[%emt 0:00:42]} a5 {[%emt 0:02:06]} 11. Qa4 {[%emt 0:08:03]} Nf5 {[%emt 0:07:13][%cal Ob7b5] White must now prevent ...b5!} 12. Rfe1 {[%emt 0:05:01]} (12. Bxa5 $2 {loses.} Bxc4 13. Qxc4 Rxa5 $19 (13... Nd6 $2 14. Bxc7 Qxc7 15. Qd5 $19)) (12. Nxa5 $2 Nxa5 13. Qd1 (13. Bxa5 $2 b6 $19) 13... Bxa2 $19) 12... Bd7 {[%emt 0:11:43]} 13. Ne3 {[%emt 0:17:39]} (13. Bxa5 $2 {perishes.} Nxa5 14. Qb4 Nxc4 15. Qxc4 c6 $19) 13... Ncd4 {[%emt 0:04:58]} 14. Qc4 {[%emt 0:01:26]} c6 {[%emt 0:00:58]} 15. Nxf5 {[%emt 0:03:00]} Bxf5 {[%emt 0:02:03]} 16. Nxd4 {[%emt 0:01:22]} exd4 {[%emt 0:00:39]} 17. Qb3 {[%emt 0:14:32]} Qd7 {[%emt 0:03:44]} 18. Qa4 {[%emt 0:06:14][%cal Oc1c5]} Rfc8 {[%emt 0:06:28]} (18... Ra6 $15) 19. Rc5 $11 {[%emt 0:02:23] The position is equal.} b5 {[%emt 0:14:37]} 20. Qc2 {[%emt 0:02:51]} Ra6 {[%emt 0:00:12]} 21. a4 $1 {[%emt 0:10:31]} ({Much weaker is} 21. Rc1 Bf8 $15) 21... Bf8 {[%emt 0:02:24]} 22. axb5 {[%emt 0:04:35]} cxb5 {[%emt 0:00:05]} 23. Rxc8 {[%emt 0:00:07]} Qxc8 {[%emt 0:00:04]} 24. Qxc8 {[%emt 0:01:12]} Bxc8 {[%emt 0:00:05]} 25. Rc1 {[%emt 0:02:35]} Bg4 {[%emt 0:01:14] Weighted Error Value: White=0.04 (flawless) /Black=0.09 (flawless) .  Mistake:       	---       	Black=1      Inaccurate:     	White=1     	---        OK:         	White=9     	Black=7      Best:        	White=2     	---        Strong:       	White=1     	---} 1/2-1/2